[Event "Late-Titled-Tuesday-Blitz-April-30-2024"]
[Site "Chess.com"]
[Date "2024.04.30"]
[Round "3"]
[White "DishonorOnYourCow"]
[Black "Darkbluelord"]
[Result "0-1"]
[WhiteElo "2530"]
[BlackElo "2193"]
[TimeControl "180+1"]
[EndTime "14:29:21 PDT"]
[Termination "Darkbluelord won by checkmate"]

1. d4 {[%clk 0:03:00.9]} 1... c5 {[%clk 0:02:59.5]} 2. d5 {[%clk 0:03:00.2]}
2... d6 {[%clk 0:02:59.6]} 3. c4 {[%clk 0:03:00.8]} 3... b5 {[%clk 0:03:00.2]}
4. e4 {[%clk 0:02:58.5]} 4... b4 {[%clk 0:03:00]} 5. f4 {[%clk 0:02:57.4]} 5...
Nd7 {[%clk 0:02:59.6]} 6. Bd3 {[%clk 0:02:57.6]} 6... g6 {[%clk 0:02:59.9]} 7.
Nf3 {[%clk 0:02:57.3]} 7... Bg7 {[%clk 0:03:00.3]} 8. O-O {[%clk 0:02:56.4]}
8... Ngf6 {[%clk 0:03:00.1]} 9. e5 {[%clk 0:02:46.6]} 9... dxe5 {[%clk
0:02:41.3]} 10. fxe5 {[%clk 0:02:47.5]} 10... Ng4 {[%clk 0:02:41.5]} 11. e6
{[%clk 0:02:47.1]} 11... Nde5 {[%clk 0:02:33.4]} 12. Nxe5 {[%clk 0:02:33.7]}
12... Nxe5 {[%clk 0:02:32.6]} 13. exf7+ {[%clk 0:02:17.9]} 13... Nxf7 {[%clk
0:02:32.5]} 14. Nd2 {[%clk 0:02:08.1]} 14... O-O {[%clk 0:02:29.8]} 15. Nf3
{[%clk 0:02:08.6]} 15... Bg4 {[%clk 0:02:26.8]} 16. Be3 {[%clk 0:01:56.3]} 16...
Ne5 {[%clk 0:02:18.1]} 17. Be2 {[%clk 0:01:55.4]} 17... Bxf3 {[%clk 0:02:12.7]}
18. gxf3 {[%clk 0:01:44.7]} 18... Rb8 {[%clk 0:01:59.1]} 19. Bxc5 {[%clk
0:01:33.7]} 19... Rc8 {[%clk 0:01:43.5]} 20. Bd4 {[%clk 0:01:26.3]} 20... e6
{[%clk 0:01:21.2]} 21. f4 {[%clk 0:01:19]} 21... Nxc4 {[%clk 0:00:58.1]} 22.
Bxg7 {[%clk 0:01:17.9]} 22... Kxg7 {[%clk 0:00:58]} 23. Qd4+ {[%clk 0:00:33.4]}
23... Qf6 {[%clk 0:00:57.8]} 24. Qxa7+ {[%clk 0:00:25.7]} 24... Rf7 {[%clk
0:00:58.3]} 25. Qa6 {[%clk 0:00:23.7]} 25... Qd4+ {[%clk 0:00:57.4]} 26. Kh1
{[%clk 0:00:23]} 26... Qxd5+ {[%clk 0:00:43.6]} 27. Bf3 {[%clk 0:00:23]} 27...
Qd8 {[%clk 0:00:39]} 28. Qxe6 {[%clk 0:00:18.8]} 28... Nd2 {[%clk 0:00:29]} 29.
Rad1 {[%clk 0:00:15]} 29... Rc2 {[%clk 0:00:26.1]} 30. Be4 {[%clk 0:00:12.6]}
30... Re7 {[%clk 0:00:18.5]} 31. Qd5 {[%clk 0:00:04.8]} 31... Qxd5 {[%clk
0:00:17.9]} 32. Bxd5 {[%clk 0:00:05.1]} 32... Nxf1 {[%clk 0:00:17.3]} 33. Rxf1
{[%clk 0:00:03.9]} 33... Rxb2 {[%clk 0:00:17.2]} 34. f5 {[%clk 0:00:02.4]} 34...
gxf5 {[%clk 0:00:16.5]} 35. Rg1+ {[%clk 0:00:02]} 35... Kf6 {[%clk 0:00:16.4]}
36. Bb3 {[%clk 0:00:01.6]} 36... Rd2 {[%clk 0:00:16.2]} 37. Rc1 {[%clk
0:00:01.6]} 37... Ree2 {[%clk 0:00:16.5]} 38. Rc6+ {[%clk 0:00:01.9]} 38... Ke5
{[%clk 0:00:17]} 39. Rh6 {[%clk 0:00:02]} 39... Re1# {[%clk 0:00:16.3]} 0-1

[Event "Late-Titled-Tuesday-Blitz-April-30-2024"]
[Site "Chess.com"]
[Date "2024.04.30"]
[Round "3"]
[White "disciplinedbrat"]
[Black "e4evr"]
[Result "1-0"]
[WhiteElo "2429"]
[BlackElo "2215"]
[TimeControl "180+1"]
[EndTime "14:29:22 PDT"]
[Termination "disciplinedbrat won by checkmate"]

1. h3 {[%clk 0:03:00.9]} 1... a5 {[%clk 0:02:59.2]} 2. a3 {[%clk 0:02:59.8]}
2... Ra6 {[%clk 0:02:57.4]} 3. Nc3 {[%clk 0:02:59.7]} 3... Rg6 {[%clk
0:02:56.7]} 4. d4 {[%clk 0:02:58.8]} 4... e6 {[%clk 0:02:56.2]} 5. e4 {[%clk
0:02:59.1]} 5... c5 {[%clk 0:02:52.2]} 6. Nf3 {[%clk 0:02:57.4]} 6... cxd4
{[%clk 0:02:51.1]} 7. Qxd4 {[%clk 0:02:47.6]} 7... Nc6 {[%clk 0:02:49.8]} 8. Qa4
{[%clk 0:02:46.7]} 8... Bc5 {[%clk 0:02:46.8]} 9. Bf4 {[%clk 0:02:37.9]} 9...
Nge7 {[%clk 0:02:38]} 10. Nb5 {[%clk 0:02:37.5]} 10... O-O {[%clk 0:02:36.1]}
11. O-O-O {[%clk 0:02:26.9]} 11... e5 {[%clk 0:02:32.4]} 12. Nxe5 {[%clk
0:02:18.3]} 12... Nxe5 {[%clk 0:02:32]} 13. Bxe5 {[%clk 0:02:17.5]} 13... Nc6
{[%clk 0:02:31.7]} 14. Bc7 {[%clk 0:02:10.9]} 14... Qg5+ {[%clk 0:02:31]} 15. f4
{[%clk 0:02:07.1]} 15... Qe7 {[%clk 0:02:26.3]} 16. Kb1 {[%clk 0:02:03]} 16...
b6 {[%clk 0:02:21.6]} 17. e5 {[%clk 0:01:59.7]} 17... Rg3 {[%clk 0:02:14.5]} 18.
f5 {[%clk 0:01:50.4]} 18... Nxe5 {[%clk 0:02:04.2]} 19. Qf4 {[%clk 0:01:48.7]}
19... Re3 {[%clk 0:01:56.4]} 20. Bd6 {[%clk 0:01:25.3]} 20... Bxd6 {[%clk
0:01:54.2]} 21. Qxe3 {[%clk 0:01:25.3]} 21... Bc5 {[%clk 0:01:54.2]} 22. Qe4
{[%clk 0:01:19.1]} 22... Re8 {[%clk 0:01:44.9]} 23. Nc7 {[%clk 0:01:19]} 23...
Rd8 {[%clk 0:01:25.8]} 24. Nd5 {[%clk 0:01:17.3]} 24... Qd6 {[%clk 0:01:24.2]}
25. f6 {[%clk 0:01:14.4]} 25... Qe6 {[%clk 0:01:09.5]} 26. fxg7 {[%clk
0:00:55.8]} 26... f5 {[%clk 0:00:51.4]} 27. Qh4 {[%clk 0:00:54.1]} 27... Nf7
{[%clk 0:00:45.1]} 28. Bc4 {[%clk 0:00:50.7]} 28... Kxg7 {[%clk 0:00:42.3]} 29.
Nf4 {[%clk 0:00:37.3]} 29... Qh6 {[%clk 0:00:36.5]} 30. Nh5+ {[%clk 0:00:35.8]}
30... Kh8 {[%clk 0:00:25.1]} 31. Bxf7 {[%clk 0:00:34.2]} 31... Rg8 {[%clk
0:00:22.2]} 32. Bxg8 {[%clk 0:00:33.4]} 32... Kxg8 {[%clk 0:00:21.5]} 33. Qd8+
{[%clk 0:00:27.2]} 33... Bf8 {[%clk 0:00:20.7]} 34. Nf6+ {[%clk 0:00:26.2]}
34... Kf7 {[%clk 0:00:20.3]} 35. Qxc8 {[%clk 0:00:19.8]} 35... Qxf6 {[%clk
0:00:20.1]} 36. Qxd7+ {[%clk 0:00:19.8]} 36... Kg6 {[%clk 0:00:18.7]} 37. Rhe1
{[%clk 0:00:19.7]} 37... Kh5 {[%clk 0:00:17.7]} 38. g4+ {[%clk 0:00:18.4]} 38...
Kh4 {[%clk 0:00:17.2]} 39. Qxf5 {[%clk 0:00:18.9]} 39... Bg7 {[%clk 0:00:15.9]}
40. Qxf6+ {[%clk 0:00:18.8]} 40... Bxf6 {[%clk 0:00:16.2]} 41. Rf1 {[%clk
0:00:18.1]} 41... Be5 {[%clk 0:00:16.2]} 42. Rd5 {[%clk 0:00:18]} 42... Bg3
{[%clk 0:00:16.2]} 43. Rh5# {[%clk 0:00:18.6]} 1-0

[Event "Late-Titled-Tuesday-Blitz-April-30-2024"]
[Site "Chess.com"]
[Date "2024.04.30"]
[Round "3"]
[White "Zhigalko_Sergei"]
[Black "yaguigor"]
[Result "1-0"]
[WhiteElo "2871"]
[BlackElo "2569"]
[TimeControl "180+1"]
[EndTime "14:29:25 PDT"]
[Termination "Zhigalko_Sergei won by resignation"]

1. e4 {[%clk 0:03:00.9]} 1... c5 {[%clk 0:03:00.5]} 2. Nf3 {[%clk 0:03:00.3]}
2... Nc6 {[%clk 0:02:59.5]} 3. c3 {[%clk 0:03:00.5]} 3... Nf6 {[%clk 0:02:59]}
4. e5 {[%clk 0:03:00.8]} 4... Nd5 {[%clk 0:02:59.7]} 5. Bc4 {[%clk 0:03:01.3]}
5... e6 {[%clk 0:02:59.3]} 6. d4 {[%clk 0:03:01.3]} 6... cxd4 {[%clk 0:02:59.5]}
7. cxd4 {[%clk 0:03:02.2]} 7... d6 {[%clk 0:03:00]} 8. O-O {[%clk 0:03:02.1]}
8... Be7 {[%clk 0:03:00.3]} 9. Bd2 {[%clk 0:03:02.4]} 9... O-O {[%clk
0:03:00.3]} 10. Nc3 {[%clk 0:03:02.4]} 10... Nxc3 {[%clk 0:02:56.9]} 11. Bxc3
{[%clk 0:03:03.3]} 11... dxe5 {[%clk 0:02:50.7]} 12. dxe5 {[%clk 0:03:03.4]}
12... a6 {[%clk 0:02:51.2]} 13. Qe2 {[%clk 0:02:56.8]} 13... b5 {[%clk
0:02:49.3]} 14. Bd3 {[%clk 0:02:57]} 14... Bb7 {[%clk 0:02:48.7]} 15. a3 {[%clk
0:02:41.7]} 15... Qb6 {[%clk 0:02:45.8]} 16. b4 {[%clk 0:02:29.9]} 16... Rad8
{[%clk 0:02:29.7]} 17. Rfe1 {[%clk 0:02:29.1]} 17... Rd7 {[%clk 0:02:28.5]} 18.
Rac1 {[%clk 0:02:15.1]} 18... Rfd8 {[%clk 0:02:23.3]} 19. Bb1 {[%clk 0:02:15.2]}
19... a5 {[%clk 0:02:16.4]} 20. Qe4 {[%clk 0:02:11.7]} 20... g6 {[%clk
0:02:14.5]} 21. Qf4 {[%clk 0:02:12.1]} 21... axb4 {[%clk 0:02:12.1]} 22. axb4
{[%clk 0:02:12.1]} 22... Bf8 {[%clk 0:01:23.4]} 23. Ng5 {[%clk 0:01:42.6]} 23...
Nd4 {[%clk 0:01:18.7]} 24. Ne4 {[%clk 0:00:46.6]} 24... Bxe4 {[%clk 0:01:17]}
25. Bxe4 {[%clk 0:00:46.2]} 25... Bg7 {[%clk 0:01:08.6]} 26. h4 {[%clk 0:00:40]}
26... h5 {[%clk 0:01:02.1]} 27. g4 {[%clk 0:00:23.9]} 27... hxg4 {[%clk
0:00:55.1]} 28. Qxg4 {[%clk 0:00:24.8]} 28... Nf5 {[%clk 0:00:47.2]} 29. h5
{[%clk 0:00:21.2]} 29... gxh5 {[%clk 0:00:25.8]} 30. Qxh5 {[%clk 0:00:19.3]}
30... Rd2 {[%clk 0:00:22.7]} 31. Bxd2 {[%clk 0:00:17.1]} 31... Rxd2 {[%clk
0:00:22]} 32. Rc8+ {[%clk 0:00:17.2]} 32... Rd8 {[%clk 0:00:20.5]} 33. Rxd8+
{[%clk 0:00:14.8]} 33... Qxd8 {[%clk 0:00:21.4]} 34. Bxf5 {[%clk 0:00:14.5]}
34... exf5 {[%clk 0:00:20.3]} 35. Qxf5 {[%clk 0:00:12.9]} 35... Qd2 {[%clk
0:00:19.2]} 36. Re4 {[%clk 0:00:11.2]} 36... Qc1+ {[%clk 0:00:18]} 37. Kg2
{[%clk 0:00:11.2]} 37... Qc6 {[%clk 0:00:17.7]} 38. e6 {[%clk 0:00:10.3]} 1-0

[Event "Late-Titled-Tuesday-Blitz-April-30-2024"]
[Site "Chess.com"]
[Date "2024.04.30"]
[Round "3"]
[White "Durarbayli"]
[Black "mortngabriel"]
[Result "1-0"]
[WhiteElo "2922"]
[BlackElo "2524"]
[TimeControl "180+1"]
[EndTime "14:29:25 PDT"]
[Termination "Durarbayli won on time"]

1. e4 {[%clk 0:03:00.9]} 1... c5 {[%clk 0:02:59.5]} 2. Nf3 {[%clk 0:03:00.2]}
2... a6 {[%clk 0:02:59.1]} 3. c3 {[%clk 0:02:58.4]} 3... d5 {[%clk 0:02:58.9]}
4. e5 {[%clk 0:02:58.4]} 4... Nc6 {[%clk 0:02:58.1]} 5. d4 {[%clk 0:02:58.5]}
5... Bg4 {[%clk 0:02:54.7]} 6. Be3 {[%clk 0:02:56.2]} 6... cxd4 {[%clk
0:02:48.6]} 7. cxd4 {[%clk 0:02:55.1]} 7... Qb6 {[%clk 0:02:44.1]} 8. Nbd2
{[%clk 0:02:50.8]} 8... e6 {[%clk 0:02:38.5]} 9. Be2 {[%clk 0:02:47.3]} 9...
Nge7 {[%clk 0:02:10.7]} 10. O-O {[%clk 0:02:43.7]} 10... Nf5 {[%clk 0:02:10.7]}
11. h3 {[%clk 0:02:32.2]} 11... Bxf3 {[%clk 0:02:10.5]} 12. Nxf3 {[%clk
0:02:33.1]} 12... Be7 {[%clk 0:02:08.7]} 13. Bd3 {[%clk 0:02:32.4]} 13... Nxe3
{[%clk 0:01:54.6]} 14. fxe3 {[%clk 0:02:32.5]} 14... O-O {[%clk 0:01:53.8]} 15.
Qc2 {[%clk 0:02:21.1]} 15... h6 {[%clk 0:01:30.7]} 16. Qe2 {[%clk 0:02:19.1]}
16... Rac8 {[%clk 0:01:26.9]} 17. Rad1 {[%clk 0:02:01]} 17... Nb4 {[%clk
0:01:09]} 18. Bb1 {[%clk 0:02:01]} 18... Rc7 {[%clk 0:01:05]} 19. a3 {[%clk
0:01:58.5]} 19... Nc6 {[%clk 0:01:05]} 20. Qd3 {[%clk 0:01:53.2]} 20... g6
{[%clk 0:00:59.6]} 21. Rf2 {[%clk 0:01:46.8]} 21... Na5 {[%clk 0:00:52.6]} 22.
h4 {[%clk 0:01:16.3]} 22... Qb3 {[%clk 0:00:45.4]} 23. h5 {[%clk 0:01:06.7]}
23... Qxd3 {[%clk 0:00:44.8]} 24. Bxd3 {[%clk 0:01:07.6]} 24... g5 {[%clk
0:00:43.8]} 25. Nh2 {[%clk 0:01:06.6]} 25... Nc4 {[%clk 0:00:30.3]} 26. Ng4
{[%clk 0:01:06.5]} 26... Kg7 {[%clk 0:00:28.5]} 27. a4 {[%clk 0:00:53.5]} 27...
b5 {[%clk 0:00:24.9]} 28. axb5 {[%clk 0:00:53]} 28... axb5 {[%clk 0:00:25.8]}
29. Ra1 {[%clk 0:00:50.6]} 29... b4 {[%clk 0:00:21.3]} 30. Ra6 {[%clk
0:00:29.4]} 30... Rfc8 {[%clk 0:00:19.2]} 31. b3 {[%clk 0:00:17.6]} 31... Na3
{[%clk 0:00:17.9]} 32. Nxh6 {[%clk 0:00:18.3]} 32... Kxh6 {[%clk 0:00:11]} 33.
Rxf7 {[%clk 0:00:18.4]} 33... Kxh5 {[%clk 0:00:04.2]} 34. Rxe6 {[%clk
0:00:18.9]} 34... Kg4 {[%clk 0:00:02.2]} 35. Be2+ {[%clk 0:00:16.8]} 35... Kg3
{[%clk 0:00:01.3]} 36. Rf3+ {[%clk 0:00:16.4]} 36... Kh4 {[%clk 0:00:01]} 37.
Rh6+ {[%clk 0:00:15.4]} 37... Kg4 {[%clk 0:00:01.1]} 38. Rf4+ {[%clk 0:00:15.5]}
1-0

[Event "Late-Titled-Tuesday-Blitz-April-30-2024"]
[Site "Chess.com"]
[Date "2024.04.30"]
[Round "3"]
[White "GoltsevDmitry2000"]
[Black "HansOnTwitch"]
[Result "1-0"]
[WhiteElo "2817"]
[BlackElo "3192"]
[TimeControl "180+1"]
[EndTime "14:29:28 PDT"]
[Termination "GoltsevDmitry2000 won by resignation"]

1. e4 {[%clk 0:02:59.4]} 1... c6 {[%clk 0:02:57.6]} 2. e5 {[%clk 0:02:59.2]}
2... d5 {[%clk 0:02:55.7]} 3. exd6 {[%clk 0:03:00.1]} 3... Qxd6 {[%clk
0:02:52.1]} 4. d4 {[%clk 0:03:01]} 4... Nf6 {[%clk 0:02:51.3]} 5. Nf3 {[%clk
0:03:01]} 5... Bg4 {[%clk 0:02:51.5]} 6. Be2 {[%clk 0:03:00.8]} 6... Nbd7 {[%clk
0:02:51.3]} 7. h3 {[%clk 0:03:00.6]} 7... Bh5 {[%clk 0:02:51]} 8. c3 {[%clk
0:03:00.7]} 8... e6 {[%clk 0:02:51.4]} 9. O-O {[%clk 0:03:00.8]} 9... Qc7 {[%clk
0:02:51.1]} 10. Nbd2 {[%clk 0:03:00.9]} 10... Be7 {[%clk 0:02:51]} 11. Nc4
{[%clk 0:03:01.1]} 11... O-O {[%clk 0:02:50.5]} 12. Bg5 {[%clk 0:03:00.9]} 12...
h6 {[%clk 0:02:50.5]} 13. Bh4 {[%clk 0:03:00.7]} 13... Nd5 {[%clk 0:02:44.5]}
14. Bxe7 {[%clk 0:02:58.5]} 14... Nxe7 {[%clk 0:02:45.4]} 15. Nfe5 {[%clk
0:02:57.4]} 15... Bxe2 {[%clk 0:02:44.7]} 16. Qxe2 {[%clk 0:02:58.3]} 16... Nf6
{[%clk 0:02:43.2]} 17. Rfe1 {[%clk 0:02:56.3]} 17... Rad8 {[%clk 0:02:42.8]} 18.
Rad1 {[%clk 0:02:52.1]} 18... Ned5 {[%clk 0:02:40.7]} 19. Ne3 {[%clk 0:02:51.2]}
19... Nxe3 {[%clk 0:02:35.1]} 20. Qxe3 {[%clk 0:02:50.7]} 20... Rd5 {[%clk
0:02:34.9]} 21. Qf3 {[%clk 0:02:47]} 21... Rfd8 {[%clk 0:02:33.7]} 22. Nd3
{[%clk 0:02:29.5]} 22... a5 {[%clk 0:02:26.2]} 23. Re5 {[%clk 0:02:16.2]} 23...
a4 {[%clk 0:02:24.9]} 24. Rde1 {[%clk 0:02:15.3]} 24... a3 {[%clk 0:02:20.6]}
25. b3 {[%clk 0:02:03.8]} 25... b6 {[%clk 0:02:12.7]} 26. Nb4 {[%clk 0:01:45.5]}
26... Rxe5 {[%clk 0:02:12]} 27. dxe5 {[%clk 0:01:45.5]} 27... Nd5 {[%clk
0:02:12.6]} 28. Nc2 {[%clk 0:01:45.7]} 28... Qe7 {[%clk 0:02:13.2]} 29. Rd1
{[%clk 0:01:39.1]} 29... Ra8 {[%clk 0:02:06.3]} 30. c4 {[%clk 0:01:37.4]} 30...
Nb4 {[%clk 0:01:29.3]} 31. Nxb4 {[%clk 0:01:37.1]} 31... Qxb4 {[%clk 0:01:30.2]}
32. Qxc6 {[%clk 0:01:37]} 32... Rf8 {[%clk 0:01:29.1]} 33. Qd6 {[%clk
0:01:22.7]} 33... Qc3 {[%clk 0:01:27.4]} 34. Qd4 {[%clk 0:01:13.5]} 34... Qc2
{[%clk 0:01:21]} 35. Qd2 {[%clk 0:01:12.5]} 35... Qf5 {[%clk 0:01:10.3]} 36. Qe3
{[%clk 0:01:10.4]} 36... Qc2 {[%clk 0:01:10]} 37. Qd2 {[%clk 0:01:10.4]} 37...
Qf5 {[%clk 0:01:07.4]} 38. Qc3 {[%clk 0:01:08.8]} 38... Rc8 {[%clk 0:01:02]} 39.
Qd4 {[%clk 0:00:49.7]} 39... Rc5 {[%clk 0:00:58.8]} 40. f4 {[%clk 0:00:48.1]}
40... g5 {[%clk 0:00:58.1]} 41. Qd8+ {[%clk 0:00:39.6]} 41... Kg7 {[%clk
0:00:57.2]} 42. Qxb6 {[%clk 0:00:40.2]} 42... Rc8 {[%clk 0:00:56.9]} 43. Qd4
{[%clk 0:00:31.9]} 43... g4 {[%clk 0:00:40.2]} 44. hxg4 {[%clk 0:00:27.3]} 44...
Qxg4 {[%clk 0:00:41.1]} 45. Rd2 {[%clk 0:00:22.1]} 45... Qg3 {[%clk 0:00:40.4]}
46. Qf2 {[%clk 0:00:21.2]} 46... Qc3 {[%clk 0:00:40.2]} 47. Kh2 {[%clk
0:00:20.4]} 47... Rg8 {[%clk 0:00:38.6]} 48. Qg3+ {[%clk 0:00:20]} 48... Qxg3+
{[%clk 0:00:37.4]} 49. Kxg3 {[%clk 0:00:20.9]} 49... Kg6 {[%clk 0:00:37.7]} 50.
Kf3 {[%clk 0:00:21.3]} 50... Kf5 {[%clk 0:00:37.2]} 51. c5 {[%clk 0:00:21.2]}
51... h5 {[%clk 0:00:37.2]} 52. c6 {[%clk 0:00:18.7]} 52... h4 {[%clk
0:00:37.7]} 53. Rc2 {[%clk 0:00:16.9]} 1-0

[Event "Late-Titled-Tuesday-Blitz-April-30-2024"]
[Site "Chess.com"]
[Date "2024.04.30"]
[Round "3"]
[White "Harsha_Bharathakoti"]
[Black "The_Straightforward_Rook"]
[Result "1-0"]
[WhiteElo "2905"]
[BlackElo "2515"]
[TimeControl "180+1"]
[EndTime "14:29:40 PDT"]
[Termination "Harsha_Bharathakoti won by checkmate"]

1. Nf3 {[%clk 0:03:00.9]} 1... d5 {[%clk 0:02:56.2]} 2. g3 {[%clk 0:03:00.4]}
2... Nf6 {[%clk 0:02:55.8]} 3. Bg2 {[%clk 0:03:00.8]} 3... e6 {[%clk 0:02:56.5]}
4. O-O {[%clk 0:03:01.3]} 4... c5 {[%clk 0:02:57.1]} 5. c4 {[%clk 0:03:01.7]}
5... d4 {[%clk 0:02:56.9]} 6. e3 {[%clk 0:03:02.4]} 6... Nc6 {[%clk 0:02:56.8]}
7. exd4 {[%clk 0:03:01]} 7... cxd4 {[%clk 0:02:57.7]} 8. d3 {[%clk 0:03:01.4]}
8... Bd6 {[%clk 0:02:55.1]} 9. Bg5 {[%clk 0:03:01.8]} 9... h6 {[%clk 0:02:54.9]}
10. Bxf6 {[%clk 0:03:02.3]} 10... Qxf6 {[%clk 0:02:55.6]} 11. a3 {[%clk
0:03:02.7]} 11... a5 {[%clk 0:02:54.6]} 12. Nbd2 {[%clk 0:03:03.4]} 12... Qd8
{[%clk 0:02:46.5]} 13. Rc1 {[%clk 0:03:02]} 13... O-O {[%clk 0:02:45.4]} 14. Re1
{[%clk 0:02:54.3]} 14... e5 {[%clk 0:02:38.4]} 15. c5 {[%clk 0:02:54.3]} 15...
Bc7 {[%clk 0:02:38.8]} 16. Nc4 {[%clk 0:02:46.4]} 16... Re8 {[%clk 0:02:38]} 17.
Nfd2 {[%clk 0:02:44.5]} 17... Bf5 {[%clk 0:02:23.7]} 18. Ne4 {[%clk 0:02:42.9]}
18... Rb8 {[%clk 0:02:16.2]} 19. Ned6 {[%clk 0:02:38.1]} 19... Qd7 {[%clk
0:01:40.2]} 20. Nxe8 {[%clk 0:02:14.6]} 20... Rxe8 {[%clk 0:01:41.1]} 21. Qb3
{[%clk 0:02:11.6]} 21... Rb8 {[%clk 0:01:35.4]} 22. Qb5 {[%clk 0:02:04.4]} 22...
Be6 {[%clk 0:01:30.6]} 23. b4 {[%clk 0:01:47]} 23... axb4 {[%clk 0:01:24.7]} 24.
axb4 {[%clk 0:01:47.9]} 24... Bd5 {[%clk 0:01:24.5]} 25. Nb6 {[%clk 0:01:34]}
25... Bxb6 {[%clk 0:01:20.3]} 26. Bxd5 {[%clk 0:01:34.5]} 26... Qxd5 {[%clk
0:01:19.9]} 27. Qxb6 {[%clk 0:01:35.3]} 27... f5 {[%clk 0:01:06.1]} 28. Qc7
{[%clk 0:01:07]} 28... Re8 {[%clk 0:01:06]} 29. Qxb7 {[%clk 0:00:57]} 29... Rb8
{[%clk 0:01:05.8]} 30. Rxe5 {[%clk 0:00:54]} 30... Qxe5 {[%clk 0:01:01.9]} 31.
Qxc6 {[%clk 0:00:53.7]} 31... Rxb4 {[%clk 0:01:00.4]} 32. Qa8+ {[%clk
0:00:47.6]} 32... Kh7 {[%clk 0:00:59.8]} 33. c6 {[%clk 0:00:48.4]} 33... Rb8
{[%clk 0:00:51.4]} 34. Qa7 {[%clk 0:00:45.9]} 34... Rc8 {[%clk 0:00:48.7]} 35.
c7 {[%clk 0:00:46.3]} 35... f4 {[%clk 0:00:45.6]} 36. Qb7 {[%clk 0:00:46.3]}
36... Qf5 {[%clk 0:00:45]} 37. Kg2 {[%clk 0:00:33.1]} 37... fxg3 {[%clk
0:00:40.9]} 38. hxg3 {[%clk 0:00:32.6]} 38... Rf8 {[%clk 0:00:35.4]} 39. Qe4
{[%clk 0:00:27.7]} 39... Qxe4+ {[%clk 0:00:34.5]} 40. dxe4 {[%clk 0:00:28.6]}
40... Rc8 {[%clk 0:00:34.8]} 41. Kf3 {[%clk 0:00:29.5]} 41... Kg6 {[%clk
0:00:34.8]} 42. Ke2 {[%clk 0:00:29.9]} 42... Kf6 {[%clk 0:00:35.4]} 43. Kd3
{[%clk 0:00:30.7]} 43... Ke5 {[%clk 0:00:35.4]} 44. f4+ {[%clk 0:00:30.9]} 44...
Kd6 {[%clk 0:00:35.7]} 45. Kxd4 {[%clk 0:00:31.8]} 45... g5 {[%clk 0:00:31.1]}
46. e5+ {[%clk 0:00:31.5]} 46... Ke6 {[%clk 0:00:31.4]} 47. Ke4 {[%clk
0:00:32.2]} 47... gxf4 {[%clk 0:00:30.6]} 48. gxf4 {[%clk 0:00:33.1]} 48... h5
{[%clk 0:00:30.2]} 49. f5+ {[%clk 0:00:33.6]} 49... Kd7 {[%clk 0:00:29.9]} 50.
f6 {[%clk 0:00:34]} 50... Ke6 {[%clk 0:00:29]} 51. Rc6+ {[%clk 0:00:34.6]} 51...
Kd7 {[%clk 0:00:29]} 52. Kd5 {[%clk 0:00:35.3]} 52... h4 {[%clk 0:00:26.7]} 53.
e6+ {[%clk 0:00:36.2]} 53... Ke8 {[%clk 0:00:25.9]} 54. Kd6 {[%clk 0:00:37.1]}
54... h3 {[%clk 0:00:24.8]} 55. Rc3 {[%clk 0:00:36.2]} 55... Kf8 {[%clk
0:00:15.7]} 56. Rxh3 {[%clk 0:00:36]} 56... Kg8 {[%clk 0:00:16.3]} 57. Kd7
{[%clk 0:00:36.5]} 57... Re8 {[%clk 0:00:11.8]} 58. c8=Q {[%clk 0:00:37.4]}
58... Rf8 {[%clk 0:00:09.1]} 59. Rh8+ {[%clk 0:00:36.7]} 59... Kxh8 {[%clk
0:00:09.1]} 60. Qxf8+ {[%clk 0:00:37.6]} 60... Kh7 {[%clk 0:00:09.3]} 61. Qg7#
{[%clk 0:00:38.5]} 1-0

[Event "Late-Titled-Tuesday-Blitz-April-30-2024"]
[Site "Chess.com"]
[Date "2024.04.30"]
[Round "3"]
[White "moro182"]
[Black "CrushingKings"]
[Result "1-0"]
[WhiteElo "2897"]
[BlackElo "2613"]
[TimeControl "180+1"]
[EndTime "14:29:41 PDT"]
[Termination "moro182 won on time"]

1. d4 {[%clk 0:03:00.9]} 1... g6 {[%clk 0:03:00.1]} 2. e4 {[%clk 0:02:58.9]}
2... Bg7 {[%clk 0:03:00.3]} 3. Nc3 {[%clk 0:02:59.5]} 3... c6 {[%clk 0:03:00.9]}
4. h3 {[%clk 0:02:58.8]} 4... d5 {[%clk 0:03:01.4]} 5. e5 {[%clk 0:02:59.4]}
5... f6 {[%clk 0:03:01.5]} 6. f4 {[%clk 0:02:59.6]} 6... Nh6 {[%clk 0:03:01.8]}
7. Be3 {[%clk 0:02:59.1]} 7... Nf5 {[%clk 0:03:01.3]} 8. Bf2 {[%clk 0:02:59]}
8... fxe5 {[%clk 0:03:01.6]} 9. dxe5 {[%clk 0:02:56.9]} 9... O-O {[%clk
0:02:51.7]} 10. Qd2 {[%clk 0:02:56.7]} 10... e6 {[%clk 0:02:35.5]} 11. g4 {[%clk
0:02:55.9]} 11... Nh4 {[%clk 0:02:35.5]} 12. O-O-O {[%clk 0:02:55.1]} 12... g5
{[%clk 0:02:35.3]} 13. Bxh4 {[%clk 0:02:43.6]} 13... gxh4 {[%clk 0:02:35.6]} 14.
Nf3 {[%clk 0:02:42.2]} 14... c5 {[%clk 0:02:36.1]} 15. Bd3 {[%clk 0:02:40.7]}
15... Nc6 {[%clk 0:02:36.3]} 16. Ng5 {[%clk 0:02:32.1]} 16... h6 {[%clk
0:02:30.6]} 17. Nh7 {[%clk 0:02:32.1]} 17... c4 {[%clk 0:02:01.9]} 18. Bg6
{[%clk 0:02:23.9]} 18... Ne7 {[%clk 0:01:48.5]} 19. Nxf8 {[%clk 0:02:18.6]}
19... Qxf8 {[%clk 0:01:48.6]} 20. Bh5 {[%clk 0:02:11.6]} 20... Bd7 {[%clk
0:01:47.5]} 21. Rhg1 {[%clk 0:02:11]} 21... b5 {[%clk 0:01:38.8]} 22. g5 {[%clk
0:02:09.3]} 22... Kh8 {[%clk 0:01:37.4]} 23. Ne4 {[%clk 0:02:01.1]} 23... Nf5
{[%clk 0:01:17.9]} 24. Nf6 {[%clk 0:01:50.6]} 24... Bc8 {[%clk 0:01:11.7]} 25.
Bg4 {[%clk 0:01:19.1]} 25... Ng3 {[%clk 0:01:07.7]} 26. c3 {[%clk 0:01:17.3]}
26... b4 {[%clk 0:01:04.4]} 27. Qc2 {[%clk 0:01:16.6]} 27... Bxf6 {[%clk
0:01:01.3]} 28. exf6 {[%clk 0:01:12.7]} 28... Qf7 {[%clk 0:00:20.2]} 29. cxb4
{[%clk 0:00:54.7]} 29... a5 {[%clk 0:00:19.4]} 30. b5 {[%clk 0:00:50.7]} 30...
Bb7 {[%clk 0:00:18.3]} 31. Qc3 {[%clk 0:00:46.4]} 31... h5 {[%clk 0:00:18.2]}
32. Bf3 {[%clk 0:00:29.3]} 32... Rd8 {[%clk 0:00:08.2]} 33. Qe5 {[%clk
0:00:20.9]} 33... Qg6 {[%clk 0:00:05.3]} 34. Rd2 {[%clk 0:00:18]} 34... d4
{[%clk 0:00:02.4]} 35. Bxb7 {[%clk 0:00:14.7]} 35... d3 {[%clk 0:00:01.7]} 36.
f5 {[%clk 0:00:14.9]} 36... exf5 {[%clk 0:00:01.8]} 37. f7+ {[%clk 0:00:12.7]}
37... Kh7 {[%clk 0:00:01.7]} 38. Qe7 {[%clk 0:00:13]} 38... Rd6 {[%clk
0:00:00.3]} 39. f8=Q+ {[%clk 0:00:13]} 1-0